[Event "18th IND-chT Women 2020"]
[Site "Ahmedabad"]
[Date "2020.02.10"]
[Round "1.1"]
[White "Gomes, Mary Ann"]
[Black "Mudaliar Nandini"]
[Result "1-0"]
[ECO "E01"]
[WhiteElo "2344"]
[BlackElo "1511"]
[Annotator "RC"]
[PlyCount "67"]
[EventDate "2020.02.05"]
[EventCountry "IND"]
[SourceTitle "playchess.com"]
[Source "ChessBase"]
[SourceQuality "1"]
[TimeControl "5400+30"]

1. Nf3 {[%emt 0:00:00]} Nf6 {[%emt 0:00:00]} 2. g3 {[%emt 0:00:30]} d5 {[%emt 0:00:30]} 3. Bg2 {[%emt 0:00:30]} Nbd7 {[%emt 0:00:30]} 4. c4 {[%emt 0:00:30]} c6 {[%emt 0:00:30]} 5. d4 {[%emt 0:00:30]} e6 {[%emt 0:00:30]} 6. O-O {[%emt 0:00:30]} Bd6 {[%emt 0:00:30]} 7. Nc3 {[%emt 0:00:30]} O-O {[%emt 0:00:30]} 8. Qc2 {[%emt 0:00:30]} Re8 {[%emt 0:00:30]} 9. Rd1 {[%emt 0:00:30]} h6 {[%emt 0:00:30]} 10. e4 {[%emt 0:00:30]} dxe4 {[%emt 0:00:30]} 11. Nxe4 {[%emt 0:00:30]} Nxe4 {[%emt 0:00:30]} 12. Qxe4 {[%emt 0:00:30]} Qe7 {[%emt 0:00:30]} 13. Ne5 {[%emt 0:00:30]} Rb8 {[%emt 0:00:30]} 14. h3 {[%emt 0:00:30]} f6 {[%emt 0:00:30]} 15. Nxd7 {[%emt 0:00:30]} Bxd7 {[%emt 0:00:30]} 16. Bf4 {[%emt 0:00:30]} Rbd8 {[%emt 0:00:30]} 17. Bxd6 {[%emt 0:00:30]} Qxd6 {[%emt 0:00:30]} 18. Qe3 {[%emt 0:00:30]} Re7 {[%emt 0:00:30]} 19. Be4 {[%emt 0:00:30]} Be8 {[%emt 0:00:30]} 20. Bc2 {[%emt 0:00:30]} Bh5 {[%emt 0:00:30]} 21. Rd2 {[%emt 0:00:30]} c5 {[%emt 0:00:30]} 22. Qd3 {[%emt 0:00:30]} cxd4 {[%emt 0:00:30]} 23. Qh7+ {[%emt 0:00:30]} Kf8 {[%emt 0:00:30]} 24. c5 {[%emt 0:00:30]} Qd7 {[%emt 0:00:30]} 25. Re1 {[%emt 0:00:30]} Ree8 {[%emt 0:00:30]} 26. Re4 {[%emt 0:00:30]} Qc6 {[%emt 0:00:30]} 27. Rexd4 {[%emt 0:00:30]} Rxd4 {[%emt 0:00:30]} 28. Rxd4 {[%emt 0:00:30]} f5 {[%emt 0:00:30]} 29. Ba4 {[%emt 0:00:30]} b5 {[%emt 0:00:30]} 30. cxb6 {[%emt 0:00:30]} Qc1+ {[%emt 0:00:30]} 31. Kg2 {[%emt 0:00:30]} Be2 {[%emt 0:00:30]} 32. Qh8+ {[%emt 0:00:30]} Kf7 {[%emt 0:00:30]} 33. Bxe8+ {[%emt 0:00:30]} Ke7 {[%emt 0:00:30]} 34. Rd7+ {[%emt 0:00:30]} 1-0

[Event "18th IND-chT Women 2020"]
[Site "Ahmedabad"]
[Date "2020.02.10"]
[Round "1.4"]
[White "Patel Riddhi R"]
[Black "Mohota, Nisha"]
[Result "0-1"]
[ECO "B03"]
[WhiteElo "1584"]
[BlackElo "2191"]
[Annotator "RC"]
[PlyCount "78"]
[EventDate "2020.02.05"]
[EventCountry "IND"]
[SourceTitle "playchess.com"]
[Source "ChessBase"]
[SourceQuality "1"]
[TimeControl "5400+30"]

1. e4 {[%emt 0:00:00]} Nf6 {[%emt 0:00:00]} 2. e5 {[%emt 0:00:30]} Nd5 {[%emt 0:00:30]} 3. d4 {[%emt 0:00:30]} d6 {[%emt 0:00:30]} 4. c4 {[%emt 0:00:30]} Nb6 {[%emt 0:00:30]} 5. Nc3 {[%emt 0:00:30]} dxe5 {[%emt 0:00:30]} 6. dxe5 {[%emt 0:00:30]} Qxd1+ {[%emt 0:00:30]} 7. Nxd1 {[%emt 0:00:30]} Nc6 {[%emt 0:00:30]} 8. f4 {[%emt 0:00:30]} Bf5 {[%emt 0:00:30]} 9. Ne3 {[%emt 0:00:30]} e6 {[%emt 0:00:30]} 10. Bd2 {[%emt 0:00:30]} Be4 {[%emt 0:00:30]} 11. Nh3 {[%emt 0:00:30]} O-O-O {[%emt 0:00:30]} 12. Nf2 {[%emt 0:00:30]} Bg6 {[%emt 0:00:30]} 13. Be2 {[%emt 0:00:30]} Bc5 {[%emt 0:00:30]} 14. Nfd1 {[%emt 0:00:30]} Rd7 {[%emt 0:00:30]} 15. Bc1 {[%emt 0:00:30]} Nd4 {[%emt 0:00:30]} 16. g4 {[%emt 0:00:30]} Be4 {[%emt 0:00:30]} 17. Rf1 {[%emt 0:00:30]} Nxe2 {[%emt 0:00:30]} 18. Kxe2 {[%emt 0:00:30]} Bd3+ {[%emt 0:00:30]} 19. Ke1 {[%emt 0:00:30]} Bxf1 {[%emt 0:00:30]} 20. Kxf1 {[%emt 0:00:30]} Nxc4 {[%emt 0:00:30]} 21. Ke2 {[%emt 0:00:30]} Nxe3 {[%emt 0:00:30]} 22. Nxe3 {[%emt 0:00:30]} h5 {[%emt 0:00:30]} 23. g5 {[%emt 0:00:30]} Rhd8 {[%emt 0:00:30]} 24. a3 {[%emt 0:00:30]} Bd4 {[%emt 0:00:30]} 25. Ra2 {[%emt 0:00:30]} Bxe3 {[%emt 0:00:30]} 26. Bxe3 {[%emt 0:00:30]} Rd1 {[%emt 0:00:30]} 27. b4 {[%emt 0:00:30]} Rh1 {[%emt 0:00:30]} 28. Kf3 {[%emt 0:00:30]} Rd3 {[%emt 0:00:30]} 29. Ke4 {[%emt 0:00:30]} Rb3 {[%emt 0:00:30]} 30. Re2 {[%emt 0:00:30]} g6 {[%emt 0:00:30]} 31. Kf3 {[%emt 0:00:30]} Rxa3 {[%emt 0:00:30]} 32. Kg2 {[%emt 0:00:30]} Rha1 {[%emt 0:00:30]} 33. Kf2 {[%emt 0:00:30]} R1a2 {[%emt 0:00:30]} 34. Rxa2 {[%emt 0:00:30]} Rxa2+ {[%emt 0:00:30]} 35. Kg3 {[%emt 0:00:30]} b6 {[%emt 0:00:30]} 36. Bd4 {[%emt 0:00:30]} a5 {[%emt 0:00:30]} 37. bxa5 {[%emt 0:00:30]} bxa5 {[%emt 0:00:30]} 38. h4 {[%emt 0:00:30]} a4 {[%emt 0:00:30]} 39. Bc5 {[%emt 0:00:30]} a3 {[%emt 0:00:30]} 0-1

[Event "18th IND-chT Women 2020"]
[Site "Ahmedabad"]
[Date "2020.02.10"]
[Round "1.7"]
[White "Smaraki, Mohanty"]
[Black "Meenakshi Subbaraman"]
[Result "0-1"]
[ECO "A25"]
[WhiteElo "1746"]
[BlackElo "2162"]
[Annotator "RC"]
[PlyCount "40"]
[EventDate "2020.02.05"]
[EventCountry "IND"]
[SourceTitle "playchess.com"]
[Source "ChessBase"]
[SourceQuality "1"]
[TimeControl "5400+30"]

1. c4 {[%emt 0:00:00]} d6 {[%emt 0:00:00]} 2. Nc3 {[%emt 0:00:30]} e5 {[%emt 0:00:30]} 3. e3 {[%emt 0:00:30]} g6 {[%emt 0:00:30]} 4. d4 {[%emt 0:00:30]} Nc6 {[%emt 0:00:30]} 5. Nf3 {[%emt 0:00:30]} Bg7 {[%emt 0:00:30]} 6. d5 {[%emt 0:00:30]} Nce7 {[%emt 0:00:30]} 7. Be2 {[%emt 0:00:30]} f5 {[%emt 0:00:30]} 8. Qc2 {[%emt 0:00:30]} Nf6 {[%emt 0:00:30]} 9. b3 {[%emt 0:00:30]} O-O {[%emt 0:00:30]} 10. h4 {[%emt 0:00:30]} c6 {[%emt 0:00:30]} 11. dxc6 {[%emt 0:00:30]} bxc6 {[%emt 0:00:30]} 12. Bb2 {[%emt 0:00:30]} Qc7 {[%emt 0:00:30]} 13. Rd1 {[%emt 0:00:30]} h6 {[%emt 0:00:30]} 14. Qd2 {[%emt 0:00:30]} Ne4 {[%emt 0:00:30]} 15. Qc1 {[%emt 0:00:30]} Bb7 {[%emt 0:00:30]} 16. Nxe4 {[%emt 0:00:30]} fxe4 {[%emt 0:00:30]} 17. Nd2 {[%emt 0:00:30]} d5 {[%emt 0:00:30]} 18. Nb1 {[%emt 0:00:30]} Rad8 {[%emt 0:00:30]} 19. Nc3 {[%emt 0:00:30]} Kh8 {[%emt 0:00:30]} 20. Qc2 {[%emt 0:00:30]} Nf5 {[%emt 0:00:30]} 0-1

[Event "18th IND-chT Women 2020"]
[Site "Ahmedabad"]
[Date "2020.02.10"]
[Round "1.9"]
[White "Harshini A"]
[Black "Pammi, Rani"]
[Result "1-0"]
[ECO "B91"]
[WhiteElo "2194"]
[BlackElo "1468"]
[Annotator "RC"]
[PlyCount "59"]
[EventDate "2020.02.05"]
[EventCountry "IND"]
[SourceTitle "playchess.com"]
[Source "ChessBase"]
[SourceQuality "1"]
[TimeControl "5400+30"]

1. e4 {[%emt 0:00:00]} c5 {[%emt 0:00:00]} 2. Nf3 {[%emt 0:00:30]} d6 {[%emt 0:00:30]} 3. d4 {[%emt 0:00:30]} cxd4 {[%emt 0:00:30]} 4. Nxd4 {[%emt 0:00:30]} Nf6 {[%emt 0:00:30]} 5. Nc3 {[%emt 0:00:30]} a6 {[%emt 0:00:30]} 6. g3 {[%emt 0:00:30]} e5 {[%emt 0:00:30]} 7. Nde2 {[%emt 0:00:30]} Qc7 {[%emt 0:00:30]} 8. Bg5 {[%emt 0:00:30]} Be7 {[%emt 0:00:30]} 9. Bg2 {[%emt 0:00:30]} Be6 {[%emt 0:00:30]} 10. h3 {[%emt 0:00:30]} h6 {[%emt 0:00:30]} 11. Be3 {[%emt 0:00:30]} Nbd7 {[%emt 0:00:30]} 12. a4 {[%emt 0:00:30]} Nb6 {[%emt 0:00:30]} 13. b3 {[%emt 0:00:30]} Rc8 {[%emt 0:00:30]} 14. O-O {[%emt 0:00:30]} Nbd7 {[%emt 0:00:30]} 15. a5 {[%emt 0:00:30]} O-O {[%emt 0:00:30]} 16. f4 {[%emt 0:00:30]} Nb8 {[%emt 0:00:30]} 17. Bb6 {[%emt 0:00:30]} Qc6 {[%emt 0:00:30]} 18. f5 {[%emt 0:00:30]} Bd7 {[%emt 0:00:30]} 19. Ra2 {[%emt 0:00:30]} Bd8 {[%emt 0:00:30]} 20. Be3 {[%emt 0:00:30]} b5 {[%emt 0:00:30]} 21. Qd2 {[%emt 0:00:30]} Be8 {[%emt 0:00:30]} 22. Nd5 {[%emt 0:00:30]} Nbd7 {[%emt 0:00:30]} 23. Nb4 {[%emt 0:00:30]} Qb7 {[%emt 0:00:30]} 24. Qxd6 {[%emt 0:00:30]} Bc7 {[%emt 0:00:30]} 25. Qxa6 {[%emt 0:00:30]} Qxa6 {[%emt 0:00:30]} 26. Nxa6 {[%emt 0:00:30]} Bd8 {[%emt 0:00:30]} 27. Nb4 {[%emt 0:00:30]} Ra8 {[%emt 0:00:30]} 28. Nc6 {[%emt 0:00:30]} Bc7 {[%emt 0:00:30]} 29. Nc3 {[%emt 0:00:30]} Nb8 {[%emt 0:00:30]} 30. Nxb5 {[%emt 0:00:30]} 1-0

[Event "18th IND-chT Women 2020"]
[Site "Ahmedabad"]
[Date "2020.02.10"]
[Round "1.10"]
[White "Kumari Prerna"]
[Black "Varshini, V."]
[Result "0-1"]
[ECO "B90"]
[WhiteElo "1234"]
[BlackElo "2242"]
[Annotator "RC"]
[PlyCount "54"]
[EventDate "2020.02.05"]
[EventCountry "IND"]
[SourceTitle "playchess.com"]
[Source "ChessBase"]
[SourceQuality "1"]
[TimeControl "5400+30"]

1. e4 {[%emt 0:00:00]} c5 {[%emt 0:00:00]} 2. Nf3 {[%emt 0:00:30]} d6 {[%emt 0:00:30]} 3. d4 {[%emt 0:00:30]} cxd4 {[%emt 0:00:30]} 4. Nxd4 {[%emt 0:00:30]} Nf6 {[%emt 0:00:30]} 5. Nc3 {[%emt 0:00:30]} a6 {[%emt 0:00:30]} 6. a4 {[%emt 0:00:30]} b6 {[%emt 0:00:30]} 7. Bd3 {[%emt 0:00:30]} Bb7 {[%emt 0:00:30]} 8. Bg5 {[%emt 0:00:30]} e6 {[%emt 0:00:30]} 9. f4 {[%emt 0:00:30]} Nbd7 {[%emt 0:00:30]} 10. Nb3 {[%emt 0:00:30]} Be7 {[%emt 0:00:30]} 11. Qe2 {[%emt 0:00:30]} h6 {[%emt 0:00:30]} 12. Bxf6 {[%emt 0:00:30]} Bxf6 {[%emt 0:00:30]} 13. Qd2 {[%emt 0:00:30]} Rc8 {[%emt 0:00:30]} 14. O-O {[%emt 0:00:30]} O-O {[%emt 0:00:30]} 15. Rae1 {[%emt 0:00:30]} Qc7 {[%emt 0:00:30]} 16. Nd1 {[%emt 0:00:30]} Qc6 {[%emt 0:00:30]} 17. Re2 {[%emt 0:00:30]} Qxa4 {[%emt 0:00:30]} 18. f5 {[%emt 0:00:30]} Qc6 {[%emt 0:00:30]} 19. Rf3 {[%emt 0:00:30]} Ne5 {[%emt 0:00:30]} 20. Rg3 {[%emt 0:00:30]} Bh4 {[%emt 0:00:30]} 21. Rh3 {[%emt 0:00:30]} Bg5 {[%emt 0:00:30]} 22. Qe1 {[%emt 0:00:30]} Rce8 {[%emt 0:00:30]} 23. Qg3 {[%emt 0:00:30]} exf5 {[%emt 0:00:30]} 24. exf5 {[%emt 0:00:30]} Nxd3 {[%emt 0:00:30]} 25. Rxe8 {[%emt 0:00:30]} Rxe8 {[%emt 0:00:30]} 26. cxd3 {[%emt 0:00:30]} Qc2 {[%emt 0:00:30]} 27. Nc3 {[%emt 0:00:30]} Re1+ {[%emt 0:00:30]} 0-1

[Event "18th IND-chT Women 2020"]
[Site "Ahmedabad"]
[Date "2020.02.10"]
[Round "1.12"]
[White "Marium Fatima"]
[Black "Mahalakshmi, M."]
[Result "0-1"]
[ECO "D02"]
[WhiteElo "1511"]
[BlackElo "2255"]
[Annotator "RC"]
[PlyCount "76"]
[EventDate "2020.02.05"]
[EventCountry "IND"]
[SourceTitle "playchess.com"]
[Source "ChessBase"]
[SourceQuality "1"]
[TimeControl "5400+30"]

1. d4 Nf6 2. Nf3 d5 3. g3 Bf5 4. Bg2 e6 5. O-O Bd6 6. Nbd2 O-O 7. b3 c5 8. Bb2 Nc6 9. c4 Re8 10. Rc1 cxd4 11. cxd5 Nxd5 12. Nxd4 Nxd4 13. Bxd4 Ba3 14. e4 Bxc1 15. Qxc1 Ne7 16. Qb2 Bg6 17. Bxg7 Nc6 18. Bf6 Qd3 19. e5 Nd4 20. Bxb7 Rab8 21. Bg2 Rec8 22. Bg5 Rc2 23. Qa1 Rxd2 24. Bxd2 Ne2+ 25. Kh1 Qxd2 26. Rd1 Qc2 27. h4 Rc8 28. Kh2 Nc1 29. Qd4 Nxa2 30. Rd2 Qxb3 31. Qxa7 Nb4 32. Qb7 Qc3 33. Rd7 Qc5 34. f4 Nc2 35. g4 Ne3 36. Kg3 Nxg2 37. h5 Qe3+ 38. Kh2 Qxf4+ 0-1

[Event "18th IND-chT Women 2020"]
[Site "Ahmedabad"]
[Date "2020.02.10"]
[Round "2.1"]
[White "Nanditha V"]
[Black "Gomes, Mary Ann"]
[Result "0-1"]
[ECO "C02"]
[WhiteElo "1728"]
[BlackElo "2344"]
[Annotator "RC"]
[PlyCount "72"]
[EventDate "2020.02.05"]
[EventCountry "IND"]
[SourceTitle "playchess.com"]
[Source "ChessBase"]
[SourceQuality "1"]
[TimeControl "5400+30"]

1. e4 {[%emt 0:00:00]} c5 {[%emt 0:00:00]} 2. Nf3 {[%emt 0:00:30]} e6 {[%emt 0:00:30]} 3. c3 {[%emt 0:00:30]} d5 {[%emt 0:00:30]} 4. e5 {[%emt 0:00:30]} Nc6 {[%emt 0:00:30]} 5. d4 {[%emt 0:00:30]} Qb6 {[%emt 0:00:30]} 6. Bd3 {[%emt 0:00:30]} cxd4 {[%emt 0:00:30]} 7. cxd4 {[%emt 0:00:30]} Bd7 {[%emt 0:00:30]} 8. Bc2 {[%emt 0:00:30]} Nb4 {[%emt 0:00:30]} 9. O-O {[%emt 0:00:30]} Nxc2 {[%emt 0:00:30]} 10. Qxc2 {[%emt 0:00:30]} Rc8 {[%emt 0:00:30]} 11. Nc3 {[%emt 0:00:30]} Ne7 {[%emt 0:00:30]} 12. Rd1 {[%emt 0:00:30]} Nc6 {[%emt 0:00:30]} 13. Be3 {[%emt 0:00:30]} Na5 {[%emt 0:00:30]} 14. Ne1 {[%emt 0:00:30]} Nc4 {[%emt 0:00:30]} 15. Nd3 {[%emt 0:00:30]} Bb4 {[%emt 0:00:30]} 16. Nc5 {[%emt 0:00:30]} Bxc5 {[%emt 0:00:30]} 17. dxc5 {[%emt 0:00:30]} Nxe3 {[%emt 0:00:30]} 18. fxe3 {[%emt 0:00:30]} Qxc5 {[%emt 0:00:30]} 19. Qf2 {[%emt 0:00:30]} O-O {[%emt 0:00:30]} 20. e4 {[%emt 0:00:30]} Qxf2+ {[%emt 0:00:30]} 21. Kxf2 {[%emt 0:00:30]} Bc6 {[%emt 0:00:30]} 22. exd5 {[%emt 0:00:30]} Bxd5 {[%emt 0:00:30]} 23. Rd2 {[%emt 0:00:30]} Bc6 {[%emt 0:00:30]} 24. Ke3 {[%emt 0:00:30]} f6 {[%emt 0:00:30]} 25. Rf1 {[%emt 0:00:30]} fxe5 {[%emt 0:00:30]} 26. Rxf8+ {[%emt 0:00:30]} Kxf8 {[%emt 0:00:30]} 27. Nd1 {[%emt 0:00:30]} Ke7 {[%emt 0:00:30]} 28. Nc3 {[%emt 0:00:30]} Rf8 {[%emt 0:00:30]} 29. b4 {[%emt 0:00:30]} a6 {[%emt 0:00:30]} 30. a4 {[%emt 0:00:30]} Rf4 {[%emt 0:00:30]} 31. b5 {[%emt 0:00:30]} axb5 {[%emt 0:00:30]} 32. axb5 {[%emt 0:00:30]} Rc4 {[%emt 0:00:30]} 33. bxc6 {[%emt 0:00:30]} Rxc3+ {[%emt 0:00:30]} 34. Ke4 {[%emt 0:00:30]} Rxc6 {[%emt 0:00:30]} 35. Kxe5 {[%emt 0:00:30]} Rc5+ {[%emt 0:00:30]} 36. Ke4 {[%emt 0:00:30]} b5 {[%emt 0:00:30]} 0-1

[Event "18th IND-chT Women 2020"]
[Site "Ahmedabad"]
[Date "2020.02.10"]
[Round "2.4"]
[White "Mohota, Nisha"]
[Black "Natura Bethi"]
[Result "1-0"]
[ECO "E04"]
[WhiteElo "2191"]
[BlackElo "1364"]
[Annotator "RC"]
[PlyCount "71"]
[EventDate "2020.02.05"]
[EventCountry "IND"]
[SourceTitle "playchess.com"]
[Source "ChessBase"]
[SourceQuality "1"]
[TimeControl "5400+30"]

1. d4 {[%emt 0:00:00]} Nf6 {[%emt 0:00:00]} 2. c4 {[%emt 0:00:30]} e6 {[%emt 0:00:30]} 3. g3 {[%emt 0:00:30]} d5 {[%emt 0:00:30]} 4. Nf3 {[%emt 0:00:30]} Bb4+ {[%emt 0:00:30]} 5. Nbd2 {[%emt 0:00:30]} dxc4 {[%emt 0:00:30]} 6. Qc2 {[%emt 0:00:30]} b5 {[%emt 0:00:30]} 7. a4 {[%emt 0:00:30]} c6 {[%emt 0:00:30]} 8. Bg2 {[%emt 0:00:30]} Bb7 {[%emt 0:00:30]} 9. O-O {[%emt 0:00:30]} O-O {[%emt 0:00:30]} 10. b3 {[%emt 0:00:30]} cxb3 {[%emt 0:00:30]} 11. Nxb3 {[%emt 0:00:30]} Nbd7 {[%emt 0:00:30]} 12. Bb2 {[%emt 0:00:30]} Rc8 {[%emt 0:00:30]} 13. Nc5 {[%emt 0:00:30]} Nxc5 {[%emt 0:00:30]} 14. dxc5 {[%emt 0:00:30]} a5 {[%emt 0:00:30]} 15. Ng5 {[%emt 0:00:30]} Qd2 {[%emt 0:00:30]} 16. Qxd2 {[%emt 0:00:30]} Bxd2 {[%emt 0:00:30]} 17. Bxf6 {[%emt 0:00:30]} gxf6 {[%emt 0:00:30]} 18. Ne4 {[%emt 0:00:30]} Bb4 {[%emt 0:00:30]} 19. axb5 {[%emt 0:00:30]} Ba8 {[%emt 0:00:30]} 20. Nxf6+ {[%emt 0:00:30]} Kg7 {[%emt 0:00:30]} 21. Nd7 {[%emt 0:00:30]} cxb5 {[%emt 0:00:30]} 22. Nxf8 {[%emt 0:00:30]} Bxg2 {[%emt 0:00:30]} 23. Nxe6+ {[%emt 0:00:30]} fxe6 {[%emt 0:00:30]} 24. Kxg2 {[%emt 0:00:30]} Rxc5 {[%emt 0:00:30]} 25. Rfd1 {[%emt 0:00:30]} Rc2 {[%emt 0:00:30]} 26. Rd7+ {[%emt 0:00:30]} Kg6 {[%emt 0:00:30]} 27. Kf3 {[%emt 0:00:30]} Bc3 {[%emt 0:00:30]} 28. Ra3 {[%emt 0:00:30]} a4 {[%emt 0:00:30]} 29. Rc7 {[%emt 0:00:30]} Bb2 {[%emt 0:00:30]} 30. Rxc2 {[%emt 0:00:30]} Bxa3 {[%emt 0:00:30]} 31. Ke4 {[%emt 0:00:30]} b4 {[%emt 0:00:30]} 32. Kd3 {[%emt 0:00:30]} b3 {[%emt 0:00:30]} 33. Rc4 {[%emt 0:00:30]} Bc1 {[%emt 0:00:30]} 34. Rxc1 {[%emt 0:00:30]} a3 {[%emt 0:00:30]} 35. Kc3 {[%emt 0:00:30]} b2 {[%emt 0:00:30]} 36. Rd1 {[%emt 0:00:30]} 1-0

[Event "18th IND-chT Women 2020"]
[Site "Ahmedabad"]
[Date "2020.02.10"]
[Round "2.5"]
[White "Kulkarni Bhakti"]
[Black "Divyabharathi Masanam"]
[Result "1-0"]
[ECO "D08"]
[WhiteElo "2404"]
[BlackElo "1747"]
[Annotator "RC"]
[PlyCount "75"]
[EventDate "2020.02.05"]
[EventCountry "IND"]
[SourceTitle "playchess.com"]
[Source "ChessBase"]
[SourceQuality "1"]
[TimeControl "5400+30"]

1. d4 {[%emt 0:00:00]} d5 {[%emt 0:00:00]} 2. c4 {[%emt 0:00:30]} e5 {[%emt 0:00:30]} 3. dxe5 {[%emt 0:00:30]} d4 {[%emt 0:00:30]} 4. Nf3 {[%emt 0:00:30]} Nc6 {[%emt 0:00:30]} 5. a3 {[%emt 0:00:30]} Be6 {[%emt 0:00:30]} 6. e3 {[%emt 0:00:30]} dxe3 {[%emt 0:00:30]} 7. Qxd8+ {[%emt 0:00:30]} Rxd8 {[%emt 0:00:30]} 8. Bxe3 {[%emt 0:00:30]} Nge7 {[%emt 0:00:30]} 9. Nc3 {[%emt 0:00:30]} a6 {[%emt 0:00:30]} 10. Ng5 {[%emt 0:00:30]} Nf5 {[%emt 0:00:30]} 11. Nxe6 {[%emt 0:00:30]} fxe6 {[%emt 0:00:30]} 12. Bf4 {[%emt 0:00:30]} Rd4 {[%emt 0:00:30]} 13. g3 {[%emt 0:00:30]} Be7 {[%emt 0:00:30]} 14. Be2 {[%emt 0:00:30]} O-O {[%emt 0:00:30]} 15. O-O {[%emt 0:00:30]} g5 {[%emt 0:00:30]} 16. Be3 {[%emt 0:00:30]} Rdd8 {[%emt 0:00:30]} 17. Bc1 {[%emt 0:00:30]} Nxe5 {[%emt 0:00:30]} 18. f4 {[%emt 0:00:30]} Nd3 {[%emt 0:00:30]} 19. Bxd3 {[%emt 0:00:30]} Rxd3 {[%emt 0:00:30]} 20. fxg5 {[%emt 0:00:30]} Rd4 {[%emt 0:00:30]} 21. Re1 {[%emt 0:00:30]} Kf7 {[%emt 0:00:30]} 22. Bf4 {[%emt 0:00:30]} Rxc4 {[%emt 0:00:30]} 23. Rad1 {[%emt 0:00:30]} Bd6 {[%emt 0:00:30]} 24. Re4 {[%emt 0:00:30]} Rxe4 {[%emt 0:00:30]} 25. Nxe4 {[%emt 0:00:30]} e5 {[%emt 0:00:30]} 26. Bd2 {[%emt 0:00:30]} Ke6 {[%emt 0:00:30]} 27. Bc3 {[%emt 0:00:30]} b6 {[%emt 0:00:30]} 28. Re1 {[%emt 0:00:30]} Rf7 {[%emt 0:00:30]} 29. Kg2 {[%emt 0:00:30]} Ne7 {[%emt 0:00:30]} 30. g6 {[%emt 0:00:30]} Rf8 {[%emt 0:00:30]} 31. Ng5+ {[%emt 0:00:30]} Kd5 {[%emt 0:00:30]} 32. gxh7 {[%emt 0:00:30]} Ng6 {[%emt 0:00:30]} 33. Rd1+ {[%emt 0:00:30]} Kc6 {[%emt 0:00:30]} 34. h4 {[%emt 0:00:30]} Rh8 {[%emt 0:00:30]} 35. Rf1 {[%emt 0:00:30]} Kd7 {[%emt 0:00:30]} 36. Rf7+ {[%emt 0:00:30]} Ke8 {[%emt 0:00:30]} 37. Rg7 {[%emt 0:00:30]} Nf8 {[%emt 0:00:30]} 38. Rg8 {[%emt 0:00:30]} 1-0

[Event "18th IND-chT Women 2020"]
[Site "Ahmedabad"]
[Date "2020.02.10"]
[Round "2.6"]
[White "Bala Kannamma P"]
[Black "Tania, Sachdev"]
[Result "1/2-1/2"]
[ECO "A05"]
[WhiteElo "2095"]
[BlackElo "2397"]
[Annotator "RC"]
[PlyCount "66"]
[EventDate "2020.02.05"]
[EventCountry "IND"]
[SourceTitle "playchess.com"]
[Source "ChessBase"]
[SourceQuality "1"]
[TimeControl "5400+30"]

1. Nf3 Nf6 2. g3 b6 3. Bg2 Bb7 4. d3 g6 5. e4 d6 6. O-O Bg7 7. Nbd2 c5 8. Re1 O-O 9. c3 Nc6 10. Nf1 b5 11. d4 cxd4 12. Nxd4 Nxd4 13. cxd4 Nd7 14. b3 a5 15. Rb1 Qb6 16. Bb2 a4 17. e5 Bxg2 18. Kxg2 axb3 19. axb3 Qb7+ 20. Kg1 dxe5 21. dxe5 Rfd8 22. Qc1 Ra2 23. e6 fxe6 24. Bxg7 Kxg7 25. Rxe6 Nf6 26. Qc5 Kf7 27. Rbe1 Rd7 28. h3 Rc7 29. Qe3 Ra6 30. Rxa6 Qxa6 31. Nd2 Kg7 32. Ne4 Nxe4 33. Qxe4 Qf6 1/2-1/2

[Event "18th IND-chT Women 2020"]
[Site "Ahmedabad"]
[Date "2020.02.10"]
[Round "2.7"]
[White "Vijayalakshmi, Subbaraman"]
[Black "Senthamizh Yazhini S"]
[Result "1-0"]
[ECO "D02"]
[WhiteElo "2331"]
[BlackElo "1615"]
[Annotator "RC"]
[PlyCount "69"]
[EventDate "2020.02.05"]
[EventCountry "IND"]
[SourceTitle "playchess.com"]
[Source "ChessBase"]
[SourceQuality "1"]
[TimeControl "5400+30"]

1. Nf3 {[%emt 0:00:00]} Nf6 {[%emt 0:00:00]} 2. d4 {[%emt 0:00:30]} e6 {[%emt 0:00:30]} 3. Bf4 {[%emt 0:00:30]} d5 {[%emt 0:00:30]} 4. e3 {[%emt 0:00:30]} Bd6 {[%emt 0:00:30]} 5. Bg3 {[%emt 0:00:30]} O-O {[%emt 0:00:30]} 6. Bd3 {[%emt 0:00:30]} c5 {[%emt 0:00:30]} 7. dxc5 {[%emt 0:00:30]} Bxc5 {[%emt 0:00:30]} 8. Nbd2 {[%emt 0:00:30]} Nc6 {[%emt 0:00:30]} 9. O-O {[%emt 0:00:30]} b6 {[%emt 0:00:30]} 10. c3 {[%emt 0:00:30]} Re8 {[%emt 0:00:30]} 11. e4 {[%emt 0:00:30]} dxe4 {[%emt 0:00:30]} 12. Nxe4 {[%emt 0:00:30]} Nxe4 {[%emt 0:00:30]} 13. Bxe4 {[%emt 0:00:30]} Bb7 {[%emt 0:00:30]} 14. Qa4 {[%emt 0:00:30]} Na5 {[%emt 0:00:30]} 15. Rad1 {[%emt 0:00:30]} Qc8 {[%emt 0:00:30]} 16. Bxh7+ {[%emt 0:00:30]} Kxh7 {[%emt 0:00:30]} 17. Qh4+ {[%emt 0:00:30]} Kg8 {[%emt 0:00:30]} 18. Ng5 {[%emt 0:00:30]} Qc6 {[%emt 0:00:30]} 19. Qh7+ {[%emt 0:00:30]} Kf8 {[%emt 0:00:30]} 20. Nf3 {[%emt 0:00:30]} f6 {[%emt 0:00:30]} 21. b4 {[%emt 0:00:30]} Nc4 {[%emt 0:00:30]} 22. bxc5 {[%emt 0:00:30]} bxc5 {[%emt 0:00:30]} 23. Qh4 {[%emt 0:00:30]} Ba6 {[%emt 0:00:30]} 24. Qh7 {[%emt 0:00:30]} e5 {[%emt 0:00:30]} 25. Rfe1 {[%emt 0:00:30]} Nb2 {[%emt 0:00:30]} 26. Nh4 {[%emt 0:00:30]} Nxd1 {[%emt 0:00:30]} 27. Rxd1 {[%emt 0:00:30]} Bb7 {[%emt 0:00:30]} 28. f3 {[%emt 0:00:30]} Bc8 {[%emt 0:00:30]} 29. Ng6+ {[%emt 0:00:30]} Kf7 {[%emt 0:00:30]} 30. Qh5 {[%emt 0:00:30]} Ke6 {[%emt 0:00:30]} 31. Nxe5 {[%emt 0:00:30]} fxe5 {[%emt 0:00:30]} 32. Qg6+ {[%emt 0:00:30]} Ke7 {[%emt 0:00:30]} 33. Qxg7+ {[%emt 0:00:30]} Ke6 {[%emt 0:00:30]} 34. Bh4 {[%emt 0:00:30]} Kf5 {[%emt 0:00:30]} 35. Qg4# {[%emt 0:00:30]} 1-0